[Event "Biel Master Tournament 2019"]
[Site "Biel"]
[Date "2019.07.26"]
[Round "5.18"]
[White "Antipov, Mikhail Al."]
[Black "Pranav Anand"]
[Result "1/2-1/2"]
[ECO "C95"]
[WhiteElo "2582"]
[BlackElo "2347"]
[Annotator "ChessBase"]
[PlyCount "84"]
[EventDate "2019.07.20"]
[EventType "swiss"]
[EventCountry "SUI"]
[SourceTitle "playchess.com"]
[Source "ChessBase"]
[SourceQuality "1"]
[TimeControl "40/5400+30:1800+30"]

1. e4 {[%emt 0:00:00]} e5 {[%emt 0:00:00]} 2. Nf3 {[%emt 0:00:00]} Nc6 {[%emt 0:00:17]} 3. Bb5 {[%emt 0:00:00]} a6 {[%emt 0:00:08]} 4. Ba4 {[%emt 0:00:00]} Nf6 {[%emt 0:00:10]} 5. O-O {[%emt 0:00:00]} Be7 {[%emt 0:00:05]} 6. Re1 {[%emt 0:00:00]} b5 {[%emt 0:00:05]} 7. Bb3 {[%emt 0:00:00]} d6 {[%emt 0:00:04]} 8. c3 {[%emt 0:00:04]} O-O {[%emt 0:00:06]} 9. h3 {[%emt 0:00:05]} Nb8 {[%emt 0:00:04]} 10. d4 {[%emt 0:00:05]} Nbd7 {[%emt 0:00:04]} 11. c4 {[%emt 0:00:07]} c6 {[%emt 0:00:20]} 12. a3 {[%emt 0:00:05]} bxc4 {[%emt 0:03:04]} 13. Bxc4 {[%emt 0:00:04]} Nxe4 {[%emt 0:01:50]} 14. dxe5 {[%emt 0:00:05]} d5 {[%emt 0:00:28]} 15. Ba2 {[%emt 0:00:04]} Ndc5 {[%emt 0:10:46]} 16. Nd4 {[%emt 0:29:02]} Bd7 {[%emt 0:00:31]} 17. Qc2 {[%emt 0:04:37]} Qb6 {[%emt 0:19:12]} 18. Be3 {[%emt 0:11:37]} Bg5 {[%emt 0:12:21]} 19. f4 {[%emt 0:04:56]} Bh4 {[%emt 0:02:19]} 20. Rd1 {[%emt 0:07:20]} Ne6 {[%emt 0:02:32]} 21. Nc3 {[%emt 0:01:09]} Nxc3 {[%emt 0:12:34]} 22. bxc3 {[%emt 0:00:50]} Nxd4 {[%emt 0:00:35]} 23. Rxd4 {[%emt 0:03:46]} Be7 {[%emt 0:04:17]} 24. Kh2 {[%emt 0:03:29]} Rab8 {[%emt 0:05:50]} 25. Rb1 {[%emt 0:02:47]} Qa7 {[%emt 0:02:33]} 26. Rxb8 {[%emt 0:00:26]} Qxb8 {[%emt 0:03:12]} 27. Rd1 {[%emt 0:02:57]} Bxa3 {[%emt 0:07:20]} 28. Qa4 {[%emt 0:01:32]} Qb2 {[%emt 0:02:58]} 29. Bxd5 {[%emt 0:01:54]} cxd5 {[%emt 0:00:11]} 30. Qxd7 {[%emt 0:00:04]} Qxc3 {[%emt 0:00:06]} 31. Bd4 {[%emt 0:01:34]} Qc2 {[%emt 0:03:32]} 32. Qg4 {[%emt 0:00:08]} Bb2 {[%emt 0:05:00]} 33. Bxb2 {[%emt 0:01:33]} Qxb2 {[%emt 0:00:01]} 34. Rxd5 {[%emt 0:00:08]} Qb4 {[%emt 0:01:07]} 35. h4 {[%emt 0:06:18]} Qe4 {[%emt 0:01:05]} 36. Rd7 {[%emt 0:00:30]} a5 {[%emt 0:01:03]} 37. h5 {[%emt 0:00:57]} h6 {[%emt 0:00:34]} 38. Re7 {[%emt 0:01:46]} Qb4 {[%emt 0:00:43]} 39. Rd7 {[%emt 0:00:26]} Qe4 {[%emt 0:00:14]} 40. Rc7 {[%emt 0:03:44]} a4 {[%emt 0:00:34]} 41. Rc3 {[%emt 0:30:08]} Kh8 {[%emt 0:03:58]} 42. Rg3 {[%emt 0:00:00]} Qd5 {[%emt 0:00:40]} 1/2-1/2

[Event "Biel Master Tournament 2019"]
[Site "Biel"]
[Date "2019.07.26"]
[Round "5.19"]
[White "Moussard, Jules"]
[Black "Kamber, Bruno"]
[Result "1/2-1/2"]
[ECO "B06"]
[WhiteElo "2576"]
[BlackElo "2299"]
[Annotator "RC"]
[PlyCount "24"]
[EventDate "2019.07.20"]
[EventType "swiss"]
[EventCountry "SUI"]
[SourceTitle "playchess.com"]
[Source "ChessBase"]
[SourceQuality "1"]
[TimeControl "40/5400+30:1800+30"]

1. e4 {[%emt 0:04:24]} g6 {[%emt 0:00:13]} 2. d4 {[%emt 0:00:08]} Bg7 {[%emt 0:00:06]} 3. Nc3 {[%emt 0:00:03]} d6 {[%emt 0:00:21]} 4. Be3 {[%emt 0:00:08]} a6 {[%emt 0:00:17]} 5. h4 {[%emt 0:00:09]} h5 {[%emt 0:01:47]} 6. Qd2 {[%emt 0:03:53]} b5 {[%emt 0:00:58]} 7. O-O-O {[%emt 0:00:45]} Bb7 {[%emt 0:06:41]} 8. f3 {[%emt 0:00:25]} Nf6 {[%emt 0:04:26]} 9. Nh3 {[%emt 0:00:39]} Nc6 {[%emt 0:02:14]} 10. Ng5 {[%emt 0:03:14]} e5 {[%emt 0:00:09]} 11. d5 {[%emt 0:00:51]} Ne7 {[%emt 0:09:40]} 12. Kb1 {[%emt 0:05:35]} Rc8 {[%emt 0:06:25]} 1/2-1/2

[Event "Biel Master Tournament 2019"]
[Site "Biel"]
[Date "2019.07.26"]
[Round "5.20"]
[White "Santos Ruiz, Miguel"]
[Black "Mooser, Stefan"]
[Result "1-0"]
[ECO "B48"]
[WhiteElo "2567"]
[BlackElo "2296"]
[Annotator "ChessBase"]
[PlyCount "65"]
[EventDate "2019.07.20"]
[EventType "swiss"]
[EventCountry "SUI"]
[SourceTitle "playchess.com"]
[Source "ChessBase"]
[SourceQuality "1"]
[TimeControl "40/5400+30:1800+30"]

1. e4 {[%emt 0:01:18]} c5 {[%emt 0:00:00]} 2. Nf3 {[%emt 0:00:08]} e6 {[%emt 0:00:00]} 3. d4 {[%emt 0:00:03]} cxd4 {[%emt 0:00:00]} 4. Nxd4 {[%emt 0:00:04]} Nc6 {[%emt 0:00:15]} 5. Nc3 {[%emt 0:00:05]} Qc7 {[%emt 0:00:05]} 6. Be3 {[%emt 0:00:21]} a6 {[%emt 0:00:06]} 7. a3 {[%emt 0:00:03]} b5 {[%emt 0:00:09]} 8. Nxc6 {[%emt 0:00:06]} Qxc6 {[%emt 0:00:07]} 9. Qf3 {[%emt 0:00:06]} Bb7 {[%emt 0:02:02]} 10. Qg3 {[%emt 0:01:03]} Nf6 {[%emt 0:12:56]} 11. f3 {[%emt 0:00:13]} Rc8 {[%emt 0:06:20]} 12. Bd3 {[%emt 0:20:34]} Qc7 {[%emt 0:17:35]} 13. f4 {[%emt 0:11:15]} h5 {[%emt 0:03:09]} 14. O-O {[%emt 0:18:29]} Bc5 {[%emt 0:08:40]} 15. Bxc5 {[%emt 0:05:31]} Qxc5+ {[%emt 0:00:09]} 16. Kh1 {[%emt 0:00:02]} g6 {[%emt 0:17:25]} 17. e5 {[%emt 0:12:32]} h4 {[%emt 0:07:48]} 18. Qh3 {[%emt 0:00:18]} Nh5 {[%emt 0:00:13]} 19. Be4 {[%emt 0:05:16]} Qb6 {[%emt 0:11:16]} 20. Bxb7 {[%emt 0:03:08]} Qxb7 {[%emt 0:00:01]} 21. Qxh4 {[%emt 0:00:09]} Rc4 {[%emt 0:01:49]} 22. Rf3 {[%emt 0:03:07]} Kf8 {[%emt 0:02:27]} 23. Raf1 {[%emt 0:04:14]} Kg7 {[%emt 0:01:28]} 24. Qf2 {[%emt 0:00:41]} a5 {[%emt 0:01:15]} 25. Kg1 {[%emt 0:01:24]} f5 {[%emt 0:00:06]} 26. b3 {[%emt 0:05:29]} Rc7 {[%emt 0:00:21]} 27. a4 {[%emt 0:00:51]} bxa4 {[%emt 0:01:44]} 28. Nxa4 {[%emt 0:00:03]} Rb8 {[%emt 0:01:57]} 29. c4 {[%emt 0:01:40]} Qc6 {[%emt 0:00:30]} 30. Rd3 {[%emt 0:01:20]} Rcb7 {[%emt 0:01:21]} 31. Rd6 {[%emt 0:00:14]} Qc8 {[%emt 0:00:25]} 32. Nc5 {[%emt 0:00:10]} Rc7 {[%emt 0:00:13]} 33. Na6 {[%emt 0:00:10]} 1-0

[Event "Biel Master Tournament 2019"]
[Site "Biel"]
[Date "2019.07.28"]
[Round "6.6"]
[White "Gopal G.N."]
[Black "Erigaisi Arjun"]
[Result "0-1"]
[ECO "B83"]
[WhiteElo "2594"]
[BlackElo "2531"]
[Annotator "ChessBase"]
[PlyCount "59"]
[EventDate "2019.07.20"]
[EventType "swiss"]
[EventCountry "SUI"]
[SourceTitle "playchess.com"]
[Source "ChessBase"]
[SourceQuality "1"]
[TimeControl "40/5400+30:1800+30"]

1. e4 {[%emt 0:00:00]} c5 {[%emt 0:00:22]} 2. Nf3 {[%emt 0:00:00]} e6 {[%emt 0:00:08]} 3. d4 {[%emt 0:00:00]} cxd4 {[%emt 0:00:05]} 4. Nxd4 {[%emt 0:00:00]} Nc6 {[%emt 0:00:07]} 5. Nc3 {[%emt 0:00:00]} Qc7 {[%emt 0:00:14]} 6. Be2 {[%emt 0:01:12]} Nf6 {[%emt 0:00:09]} 7. Be3 {[%emt 0:05:07]} Be7 {[%emt 0:00:14]} 8. f4 {[%emt 0:02:02]} d6 {[%emt 0:00:33]} 9. Qd2 {[%emt 0:00:22]} a6 {[%emt 0:05:16]} 10. O-O-O {[%emt 0:10:45]} Nxd4 {[%emt 0:07:29]} 11. Qxd4 {[%emt 0:00:43]} O-O {[%emt 0:41:45]} 12. g4 {[%emt 0:05:47]} e5 {[%emt 0:09:52]} 13. Qd3 {[%emt 0:01:09]} exf4 {[%emt 0:00:38]} 14. Bxf4 {[%emt 0:02:13]} Be6 {[%emt 0:00:07]} 15. g5 {[%emt 0:01:57]} Nd7 {[%emt 0:00:07]} 16. Nd5 {[%emt 0:18:54]} Bxd5 {[%emt 0:00:12]} 17. Qxd5 {[%emt 0:00:03]} Ne5 {[%emt 0:02:23]} 18. h4 {[%emt 0:04:00]} Rac8 {[%emt 0:00:33]} 19. c3 {[%emt 0:01:21]} b5 {[%emt 0:00:52]} 20. Kb1 {[%emt 0:02:22]} Qc5 {[%emt 0:05:18]} 21. Rhf1 {[%emt 0:05:56]} Qxd5 {[%emt 0:01:23]} 22. Rxd5 {[%emt 0:00:24]} f6 {[%emt 0:00:09]} 23. a4 {[%emt 0:08:19]} bxa4 {[%emt 0:02:10]} 24. Bxa6 {[%emt 0:01:24]} Ra8 {[%emt 0:00:32]} 25. Bxe5 {[%emt 0:07:28]} Rxa6 {[%emt 0:02:51]} 26. gxf6 {[%emt 0:00:08]} dxe5 {[%emt 0:00:27]} 27. fxe7 {[%emt 0:04:18]} Rxf1+ {[%emt 0:00:08]} 28. Kc2 {[%emt 0:00:01]} Kf7 {[%emt 0:00:13]} 29. Rxe5 {[%emt 0:00:03]} Ke8 {[%emt 0:00:07]} 30. Rf5 {[%emt 0:00:19]} 0-1

[Event "Biel Master Tournament 2019"]
[Site "Biel"]
[Date "2019.07.28"]
[Round "6.9"]
[White "Harika, Dronavalli"]
[Black "Vaibhav, Suri"]
[Result "1/2-1/2"]
[ECO "E20"]
[WhiteElo "2425"]
[BlackElo "2591"]
[Annotator "ChessBase"]
[PlyCount "128"]
[EventDate "2019.07.20"]
[EventType "swiss"]
[EventCountry "SUI"]
[SourceTitle "playchess.com"]
[Source "ChessBase"]
[SourceQuality "1"]
[TimeControl "40/5400+30:1800+30"]

1. d4 {[%emt 0:03:21]} Nf6 {[%emt 0:00:00]} 2. c4 {[%emt 0:00:07]} e6 {[%emt 0:00:05]} 3. Nc3 {[%emt 0:00:05]} Bb4 {[%emt 0:00:05]} 4. f3 {[%emt 0:00:07]} c5 {[%emt 0:00:41]} 5. d5 {[%emt 0:00:30]} b5 {[%emt 0:00:22]} 6. e4 {[%emt 0:00:22]} O-O {[%emt 0:00:07]} 7. e5 {[%emt 0:01:42]} Ne8 {[%emt 0:00:06]} 8. f4 {[%emt 0:00:19]} exd5 {[%emt 0:00:06]} 9. cxd5 {[%emt 0:00:14]} d6 {[%emt 0:00:05]} 10. Nf3 {[%emt 0:00:10]} c4 {[%emt 0:00:24]} 11. a4 {[%emt 0:00:44]} Nd7 {[%emt 0:11:18]} 12. Be2 {[%emt 0:00:46]} Qb6 {[%emt 0:07:09]} 13. Bd2 {[%emt 0:02:00]} Nc7 {[%emt 0:03:13]} 14. Nxb5 {[%emt 0:05:44]} Nxd5 {[%emt 0:00:38]} 15. Bxb4 {[%emt 0:06:21]} Nxb4 {[%emt 0:00:09]} 16. Nxd6 {[%emt 0:13:00]} Ba6 {[%emt 0:00:34]} 17. Nxc4 {[%emt 0:13:08]} Bxc4 {[%emt 0:03:08]} 18. Bxc4 {[%emt 0:00:04]} Qe3+ {[%emt 0:01:21]} 19. Qe2 {[%emt 0:06:43]} Nc2+ {[%emt 0:01:25]} 20. Kf1 {[%emt 0:00:10]} Qxe2+ {[%emt 0:00:54]} 21. Kxe2 {[%emt 0:00:05]} Nxa1 {[%emt 0:00:05]} 22. Rxa1 {[%emt 0:00:03]} Nb6 {[%emt 0:02:49]} 23. Bb3 {[%emt 0:01:26]} Rab8 {[%emt 0:07:49]} 24. Rd1 {[%emt 0:11:47]} Nd7 {[%emt 0:06:04]} 25. e6 {[%emt 0:01:45]} Rfe8 {[%emt 0:18:24]} 26. Rxd7 {[%emt 0:05:06]} Rxb3 {[%emt 0:00:09]} 27. e7 {[%emt 0:00:07]} Rxb2+ {[%emt 0:12:47]} 28. Kd3 {[%emt 0:00:27]} g6 {[%emt 0:11:17]} 29. Nd4 {[%emt 0:03:07]} f5 {[%emt 0:01:47]} 30. Rxa7 {[%emt 0:03:09]} Kf7 {[%emt 0:00:59]} 31. Nc6 {[%emt 0:01:05]} Ke6 {[%emt 0:03:53]} 32. a5 {[%emt 0:03:16]} Rxg2 {[%emt 0:00:40]} 33. a6 {[%emt 0:01:40]} Ra2 {[%emt 0:03:27]} 34. Kc4 {[%emt 0:03:48]} Kd6 {[%emt 0:00:01]} 35. Ne5 {[%emt 0:03:23]} Rxe7 {[%emt 0:02:10]} 36. Nf7+ {[%emt 0:00:08]} Ke6 {[%emt 0:00:08]} 37. Ng5+ {[%emt 0:00:13]} Kd6 {[%emt 0:00:17]} 38. Nf7+ {[%emt 0:00:16]} Ke6 {[%emt 0:00:04]} 39. Ng5+ {[%emt 0:00:04]} Kf6 {[%emt 0:00:06]} 40. Nxh7+ {[%emt 0:00:21]} Kf7 {[%emt 0:02:31]} 41. Ng5+ {[%emt 0:30:40]} Kf8 {[%emt 0:05:27]} 42. Rxe7 {[%emt 0:00:00]} Kxe7 {[%emt 0:00:45]} 43. Kb5 {[%emt 0:00:00]} Kd6 {[%emt 0:12:50]} 44. Nf7+ {[%emt 0:00:00]} Ke6 {[%emt 0:03:30]} 45. Ng5+ {[%emt 0:00:00]} Kd6 {[%emt 0:06:10]} 46. Nf7+ {[%emt 0:00:00]} Kc7 {[%emt 0:02:36]} 47. Ne5 {[%emt 0:00:00]} Rxh2 {[%emt 0:02:40]} 48. Nxg6 {[%emt 0:00:00]} Re2 {[%emt 0:00:02]} 49. Nh4 {[%emt 0:00:00]} Rh2 {[%emt 0:00:02]} 50. Ng6 {[%emt 0:00:00]} Rh6 {[%emt 0:02:10]} 51. Ne7 {[%emt 0:00:00]} Rh7 {[%emt 0:00:28]} 52. Nd5+ {[%emt 0:00:00]} Kb8 {[%emt 0:00:07]} 53. Kc5 {[%emt 0:00:00]} Rh6 {[%emt 0:00:10]} 54. Ne7 {[%emt 0:00:00]} Rh4 {[%emt 0:00:18]} 55. Nd5 {[%emt 0:00:00]} Rh6 {[%emt 0:00:06]} 56. Ne7 {[%emt 0:00:00]} Rxa6 {[%emt 0:00:31]} 57. Kd5 {[%emt 0:00:00]} Ra4 {[%emt 0:00:09]} 58. Nc6+ {[%emt 0:00:00]} Kc7 {[%emt 0:00:23]} 59. Nd4 {[%emt 0:00:00]} Kd7 {[%emt 0:01:57]} 60. Ke5 {[%emt 0:00:00]} Ke8 {[%emt 0:01:21]} 61. Nxf5 {[%emt 0:00:00]} Kf7 {[%emt 0:00:05]} 62. Nd6+ {[%emt 0:00:00]} Kg7 {[%emt 0:01:02]} 63. f5 {[%emt 0:00:00]} Ra6 {[%emt 0:00:39]} 64. Ke6 {[%emt 0:00:00]} Rxd6+ {[%emt 0:00:12]} 1/2-1/2

[Event "Biel Master Tournament 2019"]
[Site "Biel"]
[Date "2019.07.28"]
[Round "6.10"]
[White "Dhulipalla Bala Chandra Prasad"]
[Black "Moussard, Jules"]
[Result "1/2-1/2"]
[ECO "A88"]
[WhiteElo "2419"]
[BlackElo "2576"]
[Annotator "ChessBase"]
[PlyCount "127"]
[EventDate "2019.07.20"]
[EventType "swiss"]
[EventCountry "SUI"]
[SourceTitle "playchess.com"]
[Source "ChessBase"]
[SourceQuality "1"]
[TimeControl "40/5400+30:1800+30"]

1. d4 {[%emt 0:00:00]} f5 {[%emt 0:09:38]} 2. Nf3 {[%emt 0:00:02]} Nf6 {[%emt 0:00:08]} 3. g3 {[%emt 0:00:06]} g6 {[%emt 0:00:04]} 4. Bg2 {[%emt 0:00:04]} Bg7 {[%emt 0:00:04]} 5. O-O {[%emt 0:00:05]} O-O {[%emt 0:00:06]} 6. c4 {[%emt 0:00:38]} d6 {[%emt 0:00:12]} 7. Nc3 {[%emt 0:00:06]} c6 {[%emt 0:00:04]} 8. Rb1 {[%emt 0:01:25]} a5 {[%emt 0:00:07]} 9. d5 {[%emt 0:00:42]} e5 {[%emt 0:01:09]} 10. dxe6 {[%emt 0:00:19]} Bxe6 {[%emt 0:00:08]} 11. b3 {[%emt 0:03:17]} Na6 {[%emt 0:02:14]} 12. Ng5 {[%emt 0:16:49]} Bc8 {[%emt 0:04:09]} 13. Bb2 {[%emt 0:07:39]} Qe7 {[%emt 0:00:24]} 14. Qc2 {[%emt 0:07:52]} h6 {[%emt 0:02:37]} 15. Nf3 {[%emt 0:01:49]} Be6 {[%emt 0:00:24]} 16. Rbd1 {[%emt 0:01:23]} Nc5 {[%emt 0:05:39]} 17. e3 {[%emt 0:01:53]} Nfe4 {[%emt 0:09:50]} 18. Rfe1 {[%emt 0:09:04]} a4 {[%emt 0:07:15]} 19. Nd4 {[%emt 0:09:46]} Bf7 {[%emt 0:00:46]} 20. b4 {[%emt 0:17:31]} a3 {[%emt 0:07:51]} 21. Ba1 {[%emt 0:00:05]} Na6 {[%emt 0:07:05]} 22. Nxe4 {[%emt 0:10:24]} fxe4 {[%emt 0:00:24]} 23. b5 {[%emt 0:01:38]} Nb4 {[%emt 0:13:28]} 24. Qxe4 {[%emt 0:04:01]} Qxe4 {[%emt 0:00:37]} 25. Bxe4 {[%emt 0:00:02]} Rfe8 {[%emt 0:00:28]} 26. Bb1 {[%emt 0:01:42]} cxb5 {[%emt 0:01:37]} 27. Bc3 {[%emt 0:00:41]} Nc6 {[%emt 0:00:52]} 28. cxb5 {[%emt 0:00:29]} Ne5 {[%emt 0:00:09]} 29. Kg2 {[%emt 0:02:00]} Ra4 {[%emt 0:09:20]} 30. Rc1 {[%emt 0:00:48]} Rc4 {[%emt 0:00:53]} 31. Bd2 {[%emt 0:01:51]} Bd5+ {[%emt 0:00:43]} 32. Kf1 {[%emt 0:00:25]} Kf7 {[%emt 0:04:19]} 33. h3 {[%emt 0:00:52]} Rxc1 {[%emt 0:05:17]} 34. Rxc1 {[%emt 0:00:43]} Bc4+ {[%emt 0:00:07]} 35. Kg2 {[%emt 0:00:09]} d5 {[%emt 0:00:06]} 36. Bc2 {[%emt 0:00:37]} Bf8 {[%emt 0:01:47]} 37. f4 {[%emt 0:00:48]} Nd7 {[%emt 0:02:50]} 38. Bb3 {[%emt 0:00:12]} Nb6 {[%emt 0:00:04]} 39. Ba5 {[%emt 0:00:53]} Bxb3 {[%emt 0:02:02]} 40. axb3 {[%emt 0:00:01]} Rc8 {[%emt 0:00:13]} 41. Ra1 {[%emt 0:20:31]} Nd7 {[%emt 0:01:18]} 42. Bd2 {[%emt 0:00:20]} Ra8 {[%emt 0:02:09]} 43. Ra2 {[%emt 0:04:00]} Nc5 {[%emt 0:03:16]} 44. Bb4 {[%emt 0:05:38]} Nxb3 {[%emt 0:00:08]} 45. Rxa3 {[%emt 0:00:24]} Rxa3 {[%emt 0:00:06]} 46. Bxa3 {[%emt 0:00:04]} Nxd4 {[%emt 0:00:06]} 47. Bxf8 {[%emt 0:00:03]} Nxb5 {[%emt 0:00:06]} 48. Bb4 {[%emt 0:01:26]} Na7 {[%emt 0:11:39]} 49. Kf3 {[%emt 0:00:05]} Nc6 {[%emt 0:00:02]} 50. Bc5 {[%emt 0:01:14]} Na5 {[%emt 0:01:52]} 51. g4 {[%emt 0:01:23]} b5 {[%emt 0:04:08]} 52. e4 {[%emt 0:00:29]} Nb3 {[%emt 0:02:03]} 53. Be3 {[%emt 0:00:02]} d4 {[%emt 0:00:09]} 54. Bg1 {[%emt 0:00:19]} Nd2+ {[%emt 0:01:11]} 55. Ke2 {[%emt 0:00:02]} Nxe4 {[%emt 0:00:03]} 56. Kd3 {[%emt 0:00:11]} Nc5+ {[%emt 0:00:10]} 57. Kxd4 {[%emt 0:00:08]} Ne6+ {[%emt 0:00:02]} 58. Ke4 {[%emt 0:01:46]} b4 {[%emt 0:00:03]} 59. Be3 {[%emt 0:00:19]} h5 {[%emt 0:03:11]} 60. Kd3 {[%emt 0:00:52]} Nc7 {[%emt 0:01:16]} 61. Kc4 {[%emt 0:00:36]} Ne8 {[%emt 0:00:06]} 62. Kxb4 {[%emt 0:00:23]} hxg4 {[%emt 0:00:02]} 63. hxg4 {[%emt 0:00:08]} Nf6 {[%emt 0:00:01]} 64. f5 {[%emt 0:00:28]} 1/2-1/2

[Event "Biel Master Tournament 2019"]
[Site "Biel"]
[Date "2019.07.28"]
[Round "6.11"]
[White "Rahul Srivatshav P"]
[Black "Santos Ruiz, Miguel"]
[Result "1-0"]
[ECO "E04"]
[WhiteElo "2414"]
[BlackElo "2567"]
[Annotator "ChessBase"]
[PlyCount "83"]
[EventDate "2019.07.20"]
[EventType "swiss"]
[EventCountry "SUI"]
[SourceTitle "playchess.com"]
[Source "ChessBase"]
[SourceQuality "1"]
[TimeControl "40/5400+30:1800+30"]

1. d4 {[%emt 0:13:02]} Nf6 {[%emt 0:00:00]} 2. c4 {[%emt 0:00:45]} e6 {[%emt 0:00:00]} 3. g3 {[%emt 0:00:05]} d5 {[%emt 0:00:00]} 4. Nf3 {[%emt 0:00:01]} dxc4 {[%emt 0:00:30]} 5. Bg2 {[%emt 0:00:09]} Bb4+ {[%emt 0:00:04]} 6. Bd2 {[%emt 0:00:32]} a5 {[%emt 0:00:05]} 7. Qc2 {[%emt 0:00:56]} b6 {[%emt 0:00:05]} 8. O-O {[%emt 0:07:57]} Bb7 {[%emt 0:01:14]} 9. a3 {[%emt 0:03:32]} Bxd2 {[%emt 0:15:11]} 10. Nbxd2 {[%emt 0:03:05]} b5 {[%emt 0:00:05]} 11. a4 {[%emt 0:09:52]} c6 {[%emt 0:00:41]} 12. b3 {[%emt 0:11:36]} cxb3 {[%emt 0:00:54]} 13. Nxb3 {[%emt 0:00:24]} b4 {[%emt 0:20:17]} 14. Ne5 {[%emt 0:01:33]} O-O {[%emt 0:11:41]} 15. e4 {[%emt 0:08:02]} Qc7 {[%emt 0:12:03]} 16. Rfc1 {[%emt 0:08:52]} Rd8 {[%emt 0:06:23]} 17. h3 {[%emt 0:03:47]} h6 {[%emt 0:03:36]} 18. f4 {[%emt 0:04:56]} Rc8 {[%emt 0:03:47]} 19. Nc4 {[%emt 0:05:17]} Nbd7 {[%emt 0:01:36]} 20. e5 {[%emt 0:00:58]} Nd5 {[%emt 0:08:28]} 21. Nd6 {[%emt 0:01:43]} Ne3 {[%emt 0:00:30]} 22. Qf2 {[%emt 0:02:30]} Nxg2 {[%emt 0:00:07]} 23. Nxc8 {[%emt 0:03:43]} Rxc8 {[%emt 0:00:08]} 24. Nc5 {[%emt 0:00:16]} Nxc5 {[%emt 0:00:46]} 25. Rxc5 {[%emt 0:01:31]} Nxf4 {[%emt 0:00:16]} 26. gxf4 {[%emt 0:00:31]} Rd8 {[%emt 0:00:25]} 27. Kh2 {[%emt 0:00:47]} Rd7 {[%emt 0:00:46]} 28. Rg1 {[%emt 0:01:33]} Qd8 {[%emt 0:01:34]} 29. Qg3 {[%emt 0:01:19]} g6 {[%emt 0:03:38]} 30. f5 {[%emt 0:01:10]} exf5 {[%emt 0:05:23]} 31. e6 {[%emt 0:00:10]} Rd6 {[%emt 0:00:02]} 32. exf7+ {[%emt 0:00:31]} Kxf7 {[%emt 0:00:05]} 33. Rxf5+ {[%emt 0:00:41]} gxf5 {[%emt 0:00:27]} 34. Qg7+ {[%emt 0:00:06]} Ke6 {[%emt 0:00:01]} 35. Rg6+ {[%emt 0:00:13]} Kd5 {[%emt 0:00:04]} 36. Qe5+ {[%emt 0:00:07]} Kc4 {[%emt 0:00:01]} 37. Qc5+ {[%emt 0:00:06]} Kb3 {[%emt 0:00:23]} 38. Rg2 {[%emt 0:03:57]} Ka3 {[%emt 0:00:04]} 39. Qc4 {[%emt 0:00:07]} b3 {[%emt 0:00:06]} 40. Qc5+ {[%emt 0:00:08]} Kxa4 {[%emt 0:00:05]} 41. Rg1 {[%emt 0:30:41]} b2 {[%emt 0:30:25]} 42. Qc4+ {[%emt 0:00:04]} 1-0

[Event "Biel Master Tournament 2019"]
[Site "Biel"]
[Date "2019.07.28"]
[Round "6.12"]
[White "Aryan, Chopra"]
[Black "Saravanan, V.."]
[Result "1-0"]
[ECO "B80"]
[WhiteElo "2553"]
[BlackElo "2332"]
[Annotator "ChessBase"]
[PlyCount "93"]
[EventDate "2019.07.20"]
[EventType "swiss"]
[EventCountry "SUI"]
[SourceTitle "playchess.com"]
[Source "ChessBase"]
[SourceQuality "1"]
[TimeControl "40/5400+30:1800+30"]

1. e4 {[%emt 0:00:00]} e6 {[%emt 0:00:15]} 2. d4 {[%emt 0:00:00]} d5 {[%emt 0:00:10]} 3. Nc3 {[%emt 0:00:00]} Nf6 {[%emt 0:00:07]} 4. e5 {[%emt 0:00:00]} Nfd7 {[%emt 0:00:07]} 5. f4 {[%emt 0:00:00]} c5 {[%emt 0:00:10]} 6. Nf3 {[%emt 0:00:00]} Nc6 {[%emt 0:00:21]} 7. Be3 {[%emt 0:00:00]} Be7 {[%emt 0:00:14]} 8. Qd2 {[%emt 0:00:15]} O-O {[%emt 0:02:44]} 9. dxc5 {[%emt 0:00:11]} Nxc5 {[%emt 0:01:46]} 10. O-O-O {[%emt 0:00:20]} a6 {[%emt 0:01:22]} 11. Qf2 {[%emt 0:00:58]} Nd7 {[%emt 0:14:35]} 12. Nd4 {[%emt 0:06:58]} Na5 {[%emt 0:02:40]} 13. Qg3 {[%emt 0:09:07]} b5 {[%emt 0:02:10]} 14. Bd3 {[%emt 0:19:57]} Bb7 {[%emt 0:21:58]} 15. f5 {[%emt 0:17:17]} Nxe5 {[%emt 0:00:50]} 16. Qxe5 {[%emt 0:04:11]} Bf6 {[%emt 0:00:06]} 17. Qg3 {[%emt 0:11:42]} e5 {[%emt 0:00:06]} 18. Nb3 {[%emt 0:07:12]} Nxb3+ {[%emt 0:07:33]} 19. axb3 {[%emt 0:00:02]} d4 {[%emt 0:00:11]} 20. Be4 {[%emt 0:02:15]} Qe7 {[%emt 0:02:10]} 21. Qf3 {[%emt 0:02:56]} Bxe4 {[%emt 0:15:37]} 22. Nxe4 {[%emt 0:00:05]} dxe3 {[%emt 0:00:06]} 23. Qxe3 {[%emt 0:00:07]} Rfc8 {[%emt 0:05:54]} 24. Rd5 {[%emt 0:05:55]} Qc7 {[%emt 0:02:29]} 25. Qd3 {[%emt 0:00:40]} Rd8 {[%emt 0:02:04]} 26. Rd1 {[%emt 0:01:17]} Be7 {[%emt 0:01:03]} 27. Qc3 {[%emt 0:04:29]} Qxc3 {[%emt 0:01:50]} 28. bxc3 {[%emt 0:00:04]} f6 {[%emt 0:01:22]} 29. Rxd8+ {[%emt 0:05:41]} Rxd8 {[%emt 0:00:44]} 30. Rxd8+ {[%emt 0:00:06]} Bxd8 {[%emt 0:00:04]} 31. Kd2 {[%emt 0:00:19]} g6 {[%emt 0:06:47]} 32. g4 {[%emt 0:00:25]} gxf5 {[%emt 0:00:04]} 33. gxf5 {[%emt 0:00:07]} Kg7 {[%emt 0:00:03]} 34. Nc5 {[%emt 0:02:01]} Kh6 {[%emt 0:00:09]} 35. Kd3 {[%emt 0:00:15]} a5 {[%emt 0:00:05]} 36. c4 {[%emt 0:01:34]} Be7 {[%emt 0:04:04]} 37. Ne4 {[%emt 0:00:19]} a4 {[%emt 0:02:25]} 38. bxa4 {[%emt 0:01:26]} bxa4 {[%emt 0:00:05]} 39. c5 {[%emt 0:00:13]} Kh5 {[%emt 0:00:42]} 40. c6 {[%emt 0:00:39]} Bd8 {[%emt 0:00:04]} 41. h3 {[%emt 0:10:15]} Ba5 {[%emt 0:10:39]} 42. c4 {[%emt 0:05:42]} Kh4 {[%emt 0:00:08]} 43. Kc2 {[%emt 0:00:14]} h5 {[%emt 0:00:34]} 44. c5 {[%emt 0:01:19]} Kxh3 {[%emt 0:05:08]} 45. Nxf6 {[%emt 0:00:08]} h4 {[%emt 0:00:04]} 46. Ne4 {[%emt 0:00:27]} Kg2 {[%emt 0:01:13]} 47. f6 {[%emt 0:00:09]} 1-0